bitfinex-derivatives/quotes_ETHF0:USTF0_20250421
["timestamp","ask_amount","ask_price","bid_price","bid_amount"]
[1745215284609,13.21919469,1650.8,1650.7,3.24547852]
[1745215284811,1.2117,1650.7,1650.6,40.8]
[1745215285006,13.15656469,1650.7,1650.6,40.8]
[1745215285206,20.42056469,1650.7,1650.6,40.8]
[1745215285404,20.52893392,1650.7,1650.6,40.8]
[1745215287115,20.42056469,1650.7,1650.6,40.8]
[1745215287813,15.42056469,1650.7,1650.6,40.8]
[1745215296328,15.42056469,1650.7,1650.6,43.1246]
[1745215296926,13.08456469,1650.7,1650.6,43.1246]
[1745215297125,10.82056469,1650.7,1650.6,45.3708]
[1745215297326,9.60886469,1650.7,1650.6,45.3708]
[1745215297527,7.33056469,1650.7,1650.6,48.5786]
[1745215298327,1.19747852,1650.7,1650.6,53.5786]
[1745215299830,1.19747852,1650.7,1650.6,59.4626]
[1745215301430,1.19747852,1650.7,1650.6,54.4626]
[1745215303529,2.40917852,1650.7,1650.6,54.4626]
[1745215303720,4.84974321,1650.7,1650.6,49.8918]
[1745215303924,4.84974321,1650.7,1650.6,46.684]
[1745215304227,1.21177,1650.6,1650.5,0.00907852]
[1745215304425,5.76133469,1650.6,1650.5,0.00907852]
[1745215304631,8.96913469,1650.6,1650.5,0.00907852]
[1745215304925,5.76133469,1650.6,1650.5,0.00907852]
[1745215305123,8.02533469,1650.6,1650.5,40.80907852]
[1745215305523,11.23313469,1650.6,1650.5,40.80907852]
[1745215305720,5.58477,1650.6,1650.5,40.80907852]
[1745215305929,11.23313469,1650.6,1650.5,40.80907852]
[1745215306131,8.02533469,1650.6,1650.5,40.80907852]
[1745215306932,11.34150921,1650.6,1650.5,40.80907852]
[1745215309728,8.02533469,1650.6,1650.5,40.80907852]
[1745215312635,4.70456469,1650.6,1650.5,40.80907852]
[1745215313038,4.70456469,1650.6,1650.5,43.13037852]
[1745215313235,2.44056469,1650.6,1650.5,43.13037852]
[1745215316436,2.40917852,1650.7,1650.5,43.13037852]
[1745215316739,3.63804321,1650.7,1650.6,7.6862]
[1745215316939,4.84974321,1650.7,1650.6,7.6862]
[1745215317331,4.84974321,1650.7,1650.6,13.5702]
[1745215317837,3.63804321,1650.7,1650.6,13.5702]
[1745215318035,6.09057,1650.9,1650.6,19.78192]
[1745215318236,7.31956469,1650.9,1650.7,4.3265]
[1745215318539,8.53111469,1650.9,1650.8,5.391]
[1745215319139,10.79511469,1650.9,1650.8,5.391]
[1745215319940,9.58356469,1650.9,1650.8,5.391]
[1745215320241,7.31956469,1650.9,1650.8,5.391]
[1745215320442,9.58536469,1650.9,1650.8,5.391]
[1745215321231,11.84936469,1650.9,1650.8,5.391]
[1745215323037,11.84936469,1650.9,1650.8,6.60263]
[1745215324344,11.84936469,1650.9,1650.8,12.48663]
[1745215325138,9.58536469,1650.9,1650.8,12.48663]
[1745215326139,11.84936469,1650.9,1650.8,12.48663]
[1745215326339,11.84936469,1650.9,1650.8,9.0918]
[1745215326540,1.21168,1650.8,1650.5,42.02090852]
[1745215326843,4.4503,1650.7,1650.5,42.02090852]
[1745215327044,2.2246,1650.6,1650.5,42.02090852]
[1745215327244,6.92916469,1650.6,1650.5,42.02090852]
[1745215329243,8.14093469,1650.6,1650.5,40.80907852]
[1745215329449,13.01993469,1650.6,1650.5,40.80907852]
[1745215329840,11.80816469,1650.6,1650.5,40.80907852]
[1745215330040,13.01993469,1650.6,1650.5,40.80907852]
[1745215330449,11.80816469,1650.6,1650.5,40.80907852]
[1745215332951,13.01993469,1650.6,1650.5,40.80907852]
[1745215333149,21.22773469,1650.6,1650.5,40.80907852]
[1745215333354,21.33610934,1650.6,1650.5,40.80907852]
[1745215334252,21.22773469,1650.6,1650.5,40.80907852]
[1745215334451,21.3361131,1650.6,1650.5,40.80907852]
[1745215334652,16.3361131,1650.6,1650.5,40.80907852]
[1745215335052,15.01596469,1650.6,1650.5,40.80907852]
[1745215335249,11.80816469,1650.6,1650.5,40.80907852]
[1745215335764,9.3676,1650.6,1650.5,40.80907852]
[1745215335955,11.80816469,1650.6,1650.5,40.80907852]
[1745215336159,9.54416469,1650.6,1650.5,40.80907852]
[1745215336946,10.75593469,1650.6,1650.5,40.80907852]
[1745215337351,9.54416469,1650.6,1650.5,40.80907852]
[1745215337553,4.879,1650.9,1650.5,48.09047852]
[1745215337751,2.44056469,1650.8,1650.6,6.70093]
[1745215337955,2.44056469,1650.8,1650.7,4.4578]
[1745215338154,2.44056469,1650.8,1650.7,13.6934]
[1745215338455,4.879,1650.9,1650.7,13.69335]
[1745215338656,2.44056469,1650.9,1650.8,5.5389]
[1745215338865,2.44056469,1650.9,1650.8,2.3311]
[1745215339357,2.44056469,1650.9,1650.8,5.5389]
[1745215339548,2.44056469,1650.9,1650.8,6.75053]
[1745215339749,2.44056469,1650.9,1650.8,5.5389]
[1745215341155,2.44056469,1650.9,1650.8,3.2078]
[1745215341156,3.65211469,1650.9,1650.8,3.2078]
[1745215341358,5.91571469,1650.9,1650.8,3.2078]
[1745215342047,10.46071469,1650.9,1650.8,3.2078]
[1745215343351,15.33971469,1650.9,1650.8,3.2078]
[1745215343559,14.12816469,1650.9,1650.8,3.2078]
[1745215343752,11.84716469,1650.9,1650.8,4.41943]
[1745215343959,13.05871469,1650.9,1650.8,3.2078]
[1745215344358,15.38391469,1650.9,1650.8,3.2078]
[1745215345060,15.38391469,1650.9,1650.7,8.0107]
[1745215345254,15.38391469,1650.9,1650.7,11.2185]
[1745215345255,5.78389469,1650.8,1650.7,11.2185]
[1745215345560,1.21177,1650.6,1650.5,46.69307852]
[1745215345757,8.51933469,1650.6,1650.5,46.69307852]
[1745215346257,15.07333469,1650.6,1650.5,46.69307852]
[1745215346559,13.86156469,1650.6,1650.5,46.69307852]
[1745215347958,13.86156469,1650.6,1650.5,47.90492852]
[1745215348552,13.86156469,1650.6,1650.5,46.69307852]
[1745215348754,15.07333469,1650.6,1650.5,46.69307852]
[1745215349058,13.86156469,1650.6,1650.5,46.69307852]
[1745215349661,13.86156469,1650.6,1650.5,40.80907852]
[1745215350865,15.07333469,1650.6,1650.5,40.80907852]
[1745215351660,1.21207,1650.2,1650.1,3.2078]
[1745215351959,4.867,1650.2,1649.9,5.884]
[1745215352261,10.42504469,1650.1,1649.8,19.24690777]
[1745215352464,2.3102,1650.0,1649.8,19.24690777]
[1745215352659,4.75076469,1650.0,1649.9,40.8]
[1745215353054,5.96297469,1650.0,1649.9,43.064]
[1745215357368,5.96297469,1650.0,1649.9,45.3958]
[1745215359863,5.96297469,1650.0,1649.9,43.064]
[1745215362170,5.96297469,1650.0,1649.9,40.8]
[1745215364172,5.96297469,1650.0,1649.9,43.064]
[1745215365473,2.44056469,1650.0,1649.9,43.064]
[1745215365665,3.65277469,1650.0,1649.9,45.3683]
[1745215365869,3.65277469,1650.0,1649.9,43.064]
[1745215366081,10.51247469,1650.0,1649.9,43.064]
[1745215367778,5.98667469,1650.0,1649.9,43.064]
[1745215367988,5.98667469,1650.0,1649.9,45.3683]
[1745215372085,5.98667469,1650.0,1649.9,43.064]
[1745215374988,2.44056469,1650.0,1649.9,43.064]
[1745215375291,2.44056469,1650.0,1649.9,51.2718]
[1745215375475,4.87807852,1650.1,1650.0,1.21221]
[1745215375680,4.87807852,1650.1,1650.0,3.34341]
[1745215376981,4.87807852,1650.1,1650.0,8.34341]
[1745215377181,0.00907852,1650.1,1650.0,8.34341]
[1745215377480,1.22121852,1650.1,1650.0,7.1312]
[1745215377987,3.66178321,1650.1,1650.0,2.1312]
[1745215378582,0.00907852,1650.1,1650.0,8.34341]
[1745215378992,0.00907852,1650.1,1650.0,14.22741]
[1745215380492,0.00907852,1650.1,1650.0,9.22741]
[1745215380692,1.21188,1650.5,1650.1,1.21208]
[1745215380993,3.65244469,1650.5,1650.3,3.2078]
[1745215381194,3.65244469,1650.5,1650.4,2.3432]
[1745215382192,8.27114469,1650.5,1650.4,2.3432]
[1745215382786,10.57614469,1650.5,1650.3,9.0918]
[1745215382991,4.79526469,1650.4,1650.3,9.0918]
[1745215383196,4.79526469,1650.4,1650.3,11.435]
[1745215383393,2.44056469,1650.4,1650.3,11.435]
[1745215383692,4.86607852,1650.6,1650.5,1.21185]
[1745215383887,4.86607852,1650.6,1650.5,10.30365]
[1745215384293,4.86607852,1650.6,1650.5,14.85165]
[1745215384491,4.86607852,1650.6,1650.5,55.65165]
[1745215384988,0.00907852,1650.6,1650.5,55.65165]
[1745215388595,4.856,1651.5,1650.6,3.02944]
[1745215388797,7.1236,1651.5,1651.2,3.2078]
[1745215388990,1.21126,1651.3,1651.2,3.2078]
[1745215389186,1.21146,1651.1,1650.9,4.4653]
[1745215389486,7.1029,1651.2,1650.8,9.0918]
[1745215389690,5.69453,1651.0,1650.8,9.10087852]
[1745215389895,7.2083,1650.9,1650.8,9.10087852]
[1745215390088,11.91286469,1650.9,1650.8,9.10087852]
[1745215390592,7.12,1650.9,1650.8,10.31250852]
[1745215390798,7.12,1650.9,1650.8,12.51190852]
[1745215391094,2.264,1650.9,1650.8,17.51190852]
[1745215391398,4.86507852,1651.2,1651.1,1.21141]
[1745215391696,0.00907852,1651.2,1651.1,4.41921]
[1745215392084,0.00907852,1651.2,1651.1,56.10321]
[1745215392290,2.264,1651.4,1651.2,1.21131]
[1745215392490,2.3523,1651.3,1651.2,10.30311]
[1745215392693,4.79286469,1651.3,1651.2,10.30311]
[1745215393201,2.2019,1651.5,1651.4,1.21119]
[1745215393395,4.64246469,1651.5,1651.4,4.41899]
[1745215393793,4.64246469,1651.5,1651.4,6.61199]
[1745215394101,6.90646469,1651.5,1651.4,6.61199]
[1745215394400,6.90646469,1651.5,1651.4,8.75169]
[1745215394598,3.65561264,1652.3,1651.4,18.4245]
[1745215394801,1.21089,1651.8,1651.7,3.2078]
[1745215394999,1.21104,1651.6,1651.5,9.0918]
[1745215395188,1.21106,1651.6,1651.4,5.884]
[1745215395396,4.64246469,1651.5,1651.4,5.884]
[1745215395596,4.64246469,1651.5,1651.4,50.03489]
[1745215396001,2.2019,1651.5,1651.4,50.03489]
[1745215396202,4.4659,1651.5,1651.4,50.03489]
[1745215396395,6.90646469,1651.5,1651.4,48.8237]
[1745215396802,6.90646469,1651.5,1651.4,46.684]
[1745215398305,6.90646469,1651.5,1651.4,47.89519]
[1745215398804,6.90646469,1651.5,1651.4,46.684]
[1745215399403,6.90646469,1651.5,1651.4,47.89519]
[1745215399603,0.00907852,1651.6,1651.5,1.21111]
[1745215399799,2.33317852,1651.6,1651.5,4.41891]
[1745215400106,4.59717852,1651.6,1651.5,8.94321]
[1745215401803,7.03774321,1651.6,1651.5,3.2078]
[1745215402012,1.21111,1651.5,1651.4,46.684]
[1745215402210,12.92777469,1651.5,1651.4,46.684]
[1745215402409,11.71666469,1651.5,1651.4,46.684]
[1745215402601,12.92777469,1651.5,1651.4,40.8]
[1745215402903,1.21119,1651.4,1651.3,0.00907852]
[1745215403107,9.09016469,1651.4,1650.8,3.2078]
[1745215403308,1.21144,1651.1,1650.8,3.2078]
[1745215403509,7.0672,1651.0,1650.8,3.2078]
[1745215403808,4.64946469,1650.9,1650.8,1.21163]
[1745215404305,6.91346469,1650.9,1650.8,44.0078]
[1745215404507,8.12501469,1650.9,1650.8,40.8]
[1745215405008,6.91346469,1650.9,1650.8,40.8]
[1745215406203,9.28076469,1650.9,1650.8,42.01163]
[1745215406402,9.28076469,1650.9,1650.8,45.21943]
[1745215406703,4.4729,1650.9,1650.8,45.21943]
[1745215407210,2.2089,1650.9,1650.8,45.21943]
[1745215407610,3.2078,1651.4,1650.8,45.21943]
[1745215407611,4.842,1651.3,1650.8,44.0078]
[1745215407803,2.2727,1651.0,1650.9,5.884]
[1745215408107,4.5367,1651.0,1650.9,7.09555]
[1745215408299,6.97726469,1651.0,1650.9,7.09555]
[1745215408811,13.03074469,1651.0,1650.9,5.884]
[1745215409112,11.81926469,1651.0,1650.9,5.884]
[1745215409613,13.03074469,1651.0,1650.9,5.884]
[1745215409806,15.36714469,1651.0,1650.9,5.884]
[1745215410011,14.15566469,1651.0,1650.9,5.884]
[1745215410907,15.36714469,1651.0,1650.9,5.884]
[1745215411315,1.21155,1650.9,1650.8,40.8]
[1745215411612,8.03771469,1650.9,1650.8,40.8]
[1745215411807,6.82616469,1650.9,1650.8,40.8]
[1745215412212,9.09016469,1650.9,1650.8,40.8]
[1745215413007,9.09016469,1650.9,1650.8,42.01163]
[1745215414111,6.82616469,1650.9,1650.8,42.01163]
[1745215414818,6.82616469,1650.9,1650.8,40.8]
[1745215415018,8.03771469,1650.9,1650.8,40.8]
[1745215415214,15.30171469,1650.9,1650.8,40.8]
[1745215415420,15.41006476,1650.9,1650.8,40.8]
[1745215418722,15.41008156,1650.9,1650.8,40.8]
[1745215420312,15.41008394,1650.9,1650.8,40.8]
[1745215421921,15.41008122,1650.9,1650.8,40.8]
[1745215423216,1.21163,1650.8,1650.7,0.00907852]
[1745215423518,9.33246122,1650.8,1650.7,0.00907852]
[1745215423821,14.33246122,1650.8,1650.7,0.00907852]
[1745215424118,16.59646122,1650.8,1650.7,0.00907852]
[1745215424315,15.38483122,1650.8,1650.3,40.8]
[1745215424520,1.21192,1650.4,1650.3,40.8]
[1745215424820,6.05592,1650.4,1650.3,40.8]
[1745215425021,8.49648469,1650.4,1650.3,40.8]
[1745215425219,8.49648469,1650.4,1650.3,43.064]
[1745215425521,13.14078469,1650.4,1650.3,43.064]
[1745215425720,10.70022,1650.4,1650.3,43.064]
[1745215426021,13.14078469,1650.4,1650.3,43.064]
[1745215426321,16.45697328,1650.4,1650.3,43.064]
[1745215427319,16.45697328,1650.4,1650.3,40.8]
[1745215428126,1.21199,1650.3,1650.2,0.00907852]
[1745215428414,3.0304,1650.1,1649.6,5.5628]
[1745215428621,1.21243,1649.8,1649.7,40.8]
[1745215429019,3.65299469,1649.8,1649.7,40.8]
[1745215429219,3.65299469,1649.8,1649.7,43.064]
[1745215430425,3.65299469,1649.8,1649.7,45.3571]
[1745215431723,2.44056469,1649.8,1649.7,50.3571]
[1745215432523,2.44056469,1649.8,1649.7,45.3571]
[1745215433313,3.65292469,1649.8,1649.7,45.3571]
[1745215433717,3.65292469,1649.8,1649.7,43.064]
[1745215434122,6.01372469,1649.8,1649.7,43.064]
[1745215434724,6.12215557,1649.8,1649.7,43.064]
[1745215435117,6.12215557,1649.8,1649.7,40.8]
[1745215436521,6.01372469,1649.8,1649.7,40.8]
[1745215436726,6.12215398,1649.8,1649.7,40.8]
[1745215436927,6.12215533,1649.8,1649.7,40.8]
[1745215438126,6.12215533,1649.8,1649.7,43.064]
[1745215438328,6.12215335,1649.8,1649.7,43.064]
[1745215439831,6.01372469,1649.8,1649.7,43.064]
[1745215440125,6.12215029,1649.8,1649.7,43.064]
[1745215440325,6.01372469,1649.8,1649.7,45.4387]
[1745215440527,3.65292469,1649.8,1649.7,47.7941]
[1745215440727,3.65292469,1649.8,1649.7,50.0482]
[1745215441031,2.44056469,1649.8,1649.7,50.0482]
[1745215441528,3.65292469,1649.8,1649.7,50.0482]
[1745215442027,2.44056469,1649.8,1649.7,50.0482]
[1745215442423,2.44056469,1649.8,1649.7,55.0482]
[1745215442830,6.05727,1650.0,1649.7,55.0482]
[1745215443029,7.28556469,1650.0,1649.8,2.3472]
[1745215443632,7.28556469,1650.0,1649.9,40.8]
[1745215443825,7.28556469,1650.0,1649.9,44.0078]
[1745215444125,7.28556469,1650.0,1649.9,50.4112]
[1745215444331,8.49777469,1650.0,1649.9,45.4112]
[1745215444734,7.28556469,1650.0,1649.9,45.4112]
[1745215445226,7.28556469,1650.0,1649.9,43.1472]
[1745215445424,4.845,1650.0,1649.9,48.1472]
[1745215445933,4.845,1650.0,1649.9,51.355]
[1745215446136,4.845,1650.0,1649.9,54.83129]
[1745215446323,98.46004,1650.3,1650.0,1.21218]
[1745215446526,4.835,1650.3,1650.1,9.02999]
[1745215446733,6.04699,1650.3,1650.2,2.167]
[1745215447420,6.04699,1650.3,1650.2,42.967]
[1745215447623,1.21199,1650.3,1650.2,42.967]
[1745215447828,6.04699,1650.3,1650.2,42.967]
[1745215448433,4.835,1650.3,1650.2,44.17907]
[1745215448827,4.835,1650.3,1650.2,42.967]
[1745215449027,6.04699,1650.3,1650.2,42.967]
[1745215449728,7.27556469,1650.3,1650.2,42.967]
[1745215450527,4.835,1650.3,1650.2,44.17907]
[1745215452438,4.835,1650.3,1650.2,50.06307]
[1745215453840,7.27556469,1650.3,1650.2,50.06307]
[1745215454637,4.835,1650.3,1650.2,50.06307]
[1745215456043,0.00907852,1650.5,1650.4,1.21192]
[1745215456238,11.79084321,1650.5,1650.4,1.21192]
[1745215456440,11.79084321,1650.5,1650.3,5.3777]
[1745215456634,4.68376469,1650.4,1650.3,6.58967]
[1745215456939,1.21199,1650.3,1650.2,5.884]
[1745215457240,1.21199,1650.3,1650.2,46.684]
[1745215457241,10.35895469,1650.3,1650.2,46.684]
[1745215457442,9.14696469,1650.3,1650.2,46.684]
[1745215457829,9.14696469,1650.3,1650.2,47.89607]
[1745215458033,9.14696469,1650.3,1650.2,46.684]
[1745215458330,9.14696469,1650.3,1650.2,48.948]
[1745215461042,9.14696469,1650.3,1650.2,43.064]
[1745215461748,18.56675469,1650.3,1650.2,43.064]
[1745215461937,3.03017,1650.2,1649.6,2.29267852]
[1745215462140,3.2078,1650.0,1649.6,0.00907852]
[1745215462339,4.42023,1649.7,1649.6,0.00907852]
[1745215462544,9.36262589,1649.7,1649.6,0.00907852]
[1745215462744,10.48236469,1649.7,1649.6,0.00907852]
[1745215462946,7.27456469,1649.7,1649.6,40.80907852]
[1745215463345,9.47666469,1649.7,1649.6,40.80907852]
[1745215464040,9.47666469,1649.7,1649.6,43.05437852]
[1745215466347,10.68909469,1649.7,1649.6,43.05437852]
[1745215466942,9.47666469,1649.7,1649.6,43.05437852]
[1745215467443,10.68909469,1649.7,1649.6,40.80907852]
[1745215467653,5.85509469,1649.7,1649.6,40.80907852]
[1745215467950,10.69009469,1649.7,1649.6,40.80907852]
[1745215468550,9.47766469,1649.7,1649.6,40.80907852]
[1745215468752,9.47766469,1649.7,1649.6,43.14637852]
[1745215469052,10.69009469,1649.7,1649.6,43.14637852]
[1745215469251,10.69009469,1649.7,1649.6,40.80907852]
[1745215472554,2.44056469,1649.7,1649.6,43.21067852]
[1745215472749,3.65299469,1649.7,1649.6,43.21067852]
[1745215473052,6.02239469,1649.7,1649.6,40.80907852]
[1745215476859,9.23019469,1649.7,1649.6,40.80907852]
[1745215478860,14.33863168,1649.7,1649.6,40.80907852]
[1745215479359,9.33863168,1649.7,1649.6,40.80907852]
[1745215479555,9.23019469,1649.7,1649.6,40.80907852]
[1745215480255,6.02239469,1649.7,1649.6,40.80907852]
[1745215480460,4.80996469,1649.7,1649.6,40.80907852]
[1745215480960,6.02239469,1649.7,1649.6,40.80907852]
[1745215481458,4.80996469,1649.7,1649.6,40.80907852]
[1745215481760,4.80996469,1649.7,1649.6,43.21617852]
[1745215481963,6.02239469,1649.7,1649.6,43.21617852]
[1745215482360,4.80996469,1649.7,1649.6,43.21617852]
[1745215483059,6.02239469,1649.7,1649.6,43.21617852]
[1745215483359,4.80996469,1649.7,1649.6,43.21617852]
[1745215483858,6.02239469,1649.7,1649.6,43.21617852]
[1745215484062,2.44056469,1649.7,1649.6,43.21617852]
[1745215484961,3.65299469,1649.7,1649.6,43.21617852]
[1745215485362,5.87109469,1649.7,1649.6,43.21617852]
[1745215485567,8.16639469,1649.7,1649.6,40.80907852]
[1745215485756,10.38269469,1649.7,1649.6,40.80907852]
[1745215485955,5.87109469,1649.7,1649.6,43.03337852]
[1745215487261,2.44056469,1649.7,1649.6,43.03337852]
[1745215487656,3.65299469,1649.7,1649.6,43.03337852]
[1745215487858,6.02359469,1649.7,1649.6,43.03337852]
[1745215489260,4.81116469,1649.7,1649.6,43.03337852]
[1745215489463,4.824,1649.8,1649.6,44.24587852]
[1745215489667,7.26456469,1649.8,1649.7,4.629]
[1745215490051,7.26456469,1649.8,1649.7,6.893]
[1745215490761,8.47692469,1649.8,1649.7,6.893]
[1745215491063,7.26456469,1649.8,1649.7,6.893]
[1745215491263,8.47692469,1649.8,1649.7,6.893]
[1745215491463,8.47792469,1649.8,1649.7,6.893]
[1745215491665,10.74802469,1649.8,1649.7,6.893]
[1745215491867,10.74802469,1649.8,1649.7,2.264]
[1745215492364,13.16502469,1649.8,1649.7,2.264]
[1745215493567,10.89492469,1649.8,1649.7,4.4771]
[1745215493865,9.68256469,1649.8,1649.7,4.4771]
[1745215494066,10.89492469,1649.8,1649.7,2.264]
[1745215501574,15.89492469,1649.8,1649.7,2.264]
[1745215501971,16.00335643,1649.8,1649.7,2.264]
[1745215502178,1.21243,1649.7,1649.6,40.80907852]
[1745215502374,11.65309469,1649.7,1649.6,40.80907852]
[1745215503670,11.7615334,1649.7,1649.6,40.80907852]
[1745215503880,11.65309469,1649.7,1649.6,40.80907852]
[1745215504475,8.44529469,1649.7,1649.6,40.80907852]
[1745215504981,11.65309469,1649.7,1649.6,40.80907852]
[1745215506683,8.44529469,1649.7,1649.6,40.80907852]
[1745215512289,8.55373347,1649.7,1649.6,40.80907852]
[1745215513988,9.01095899,1649.7,1649.6,40.80907852]
[1745215514991,1.21251,1649.6,1649.5,2.264]
[1745215515190,1.21273,1649.3,1649.2,10.6574]
[1745215515388,6.02673,1649.3,1649.2,2.3445]
[1745215515591,8.46729469,1649.3,1649.2,2.3445]
[1745215515983,8.46729469,1649.3,1649.2,43.1445]
[1745215516183,10.87809469,1649.3,1649.2,45.4085]
[1745215517289,10.87809469,1649.3,1649.2,43.064]
[1745215517491,13.26159469,1649.3,1649.2,43.064]
[1745215520389,105.83905794,1649.3,1649.2,43.064]
[1745215522287,105.83906641,1649.3,1649.2,2.264]
[1745215522882,105.83906641,1649.3,1649.2,0.87094]
[1745215523091,1.2128,1649.2,1649.1,0.00907852]
[1745215523291,9.27433641,1649.2,1649.1,40.80907852]
[1745215524790,1.21324,1648.6,1648.5,2.264]
[1745215524985,6.02824,1648.6,1648.5,2.264]
[1745215525190,6.02824,1648.6,1648.5,7.264]
[1745215525590,8.46880469,1648.6,1648.5,7.264]
[1745215525790,8.46880469,1648.6,1648.5,48.064]
[1745215525991,8.46880469,1648.6,1648.5,43.064]
[1745215526299,8.46880469,1648.6,1648.5,49.9961]
[1745215527997,7.25556469,1648.6,1648.5,49.9961]
[1745215528191,4.815,1648.6,1648.5,59.41722]
[1745215528501,6.02824,1648.6,1648.5,54.9961]
[1745215528798,6.02824,1648.6,1648.5,58.2039]
[1745215529194,6.02824,1648.6,1648.5,54.9961]
[1745215530698,8.46880469,1648.6,1648.5,53.2039]
[1745215530903,10.67890469,1648.6,1648.5,49.9961]
[1745215532094,10.67890469,1648.6,1648.5,43.064]
[1745215532295,10.67890469,1648.6,1648.5,45.2844]
[1745215534404,8.46880469,1648.6,1648.5,45.2844]
[1745215539208,8.46880469,1648.6,1648.5,43.064]
[1745215539402,10.76830469,1648.6,1648.5,43.064]
[1745215539602,13.10040469,1648.6,1648.5,43.064]
[1745215539802,13.20891269,1648.6,1648.5,43.064]
[1745215541208,13.20891417,1648.6,1648.5,43.064]
[1745215542213,13.20891474,1648.6,1648.5,43.064]
[1745215542409,13.10040469,1648.6,1648.5,43.064]
[1745215543311,10.80090469,1648.6,1648.5,43.064]
[1745215543507,8.46880469,1648.6,1648.5,45.4466]
[1745215544211,0.0285,1648.7,1648.5,56.3306]
[1745215544415,1.24167,1648.7,1648.6,10.1612]
[1745215544807,6.01717,1648.7,1648.6,15.1612]
[1745215545001,6.01717,1648.7,1648.6,10.1612]
[1745215545201,8.45773469,1648.7,1648.6,10.1612]
[1745215546308,8.45773469,1648.7,1648.6,6.9534]
[1745215547315,6.01717,1648.7,1648.6,6.9534]
[1745215548211,1.21324,1648.6,1648.5,43.064]
[1745215548507,3.65380469,1648.6,1648.5,43.064]
[1745215548714,3.65380469,1648.6,1648.5,45.5215]
[1745215551220,6.10270469,1648.6,1648.5,45.5215]
[1745215556410,2.44056469,1648.6,1648.5,45.5215]
[1745215556717,2.44056469,1648.6,1648.5,48.7293]
[1745215556921,3.65380469,1648.6,1648.5,48.7293]
[1745215559419,5.93250469,1648.6,1648.5,48.7293]
[1745215560419,5.96100469,1648.6,1648.5,48.7293]
[1745215560825,5.96100469,1648.6,1648.5,46.2718]
[1745215561019,10.77010469,1648.6,1648.5,46.2718]
[1745215563127,2.46906469,1648.6,1648.5,48.6007]
[1745215563325,3.68230469,1648.6,1648.5,48.6007]
[1745215565930,5.93570469,1648.6,1648.5,48.6007]
[1745215570034,5.93570469,1648.6,1648.5,45.3929]
[1745215570229,5.93570469,1648.6,1648.5,43.064]
[1745215571423,9.14350469,1648.6,1648.5,43.064]
[1745215572732,5.93570469,1648.6,1648.5,43.064]
[1745215574934,9.14350469,1648.6,1648.5,43.064]
[1745215575230,9.2520113,1648.6,1648.5,43.064]
[1745215575535,9.2520103,1648.6,1648.5,43.064]
[1745215575733,6.81144561,1648.6,1648.5,43.064]
[1745215575928,9.2520103,1648.6,1648.5,43.064]
[1745215577227,9.71995316,1648.6,1648.5,43.064]
[1745215577426,14.71995316,1648.6,1648.5,41.78678]
[1745215578628,14.71996873,1648.6,1648.5,41.78678]
[1745215578833,1.21332,1648.5,1648.4,9.0578]
[1745215579131,10.94980875,1648.5,1648.4,2.264]
[1745215579330,15.94980875,1648.5,1648.4,2.264]
[1745215579528,10.94980875,1648.5,1648.4,2.264]
[1745215579729,10.97830875,1648.5,1648.4,43.064]
[1745215579929,15.97830875,1648.5,1648.4,43.064]
[1745215580235,15.97831042,1648.5,1648.4,43.064]
[1745215580426,1.21368,1648.0,1647.9,7.0779]
[1745215580625,6.00568,1648.0,1647.9,7.07096751]
[1745215580829,8.44624469,1648.0,1647.9,7.07096751]
[1745215581328,8.44624469,1648.0,1647.9,9.33496751]
[1745215581528,10.81834469,1648.0,1647.9,50.13496751]
[1745215582539,10.81834469,1648.0,1647.9,43.064]
[1745215583731,10.84684469,1648.0,1647.9,43.064]
[1745215585238,10.84684469,1648.0,1647.9,50.443]
[1745215585543,10.84684469,1648.0,1647.9,43.064]
[1745215590853,6.03418,1648.0,1647.9,51.2718]
[1745215591044,6.03418,1648.0,1647.9,55.2925]
[1745215591343,8.47474469,1648.0,1647.9,50.2925]
[1745215591539,8.47474469,1648.0,1647.9,47.832]
[1745215591737,10.83814469,1648.0,1647.9,43.064]
[1745215592943,14.04594469,1648.0,1647.9,43.064]
[1745215593144,14.1544939,1648.0,1647.9,43.064]
[1745215593638,10.9466939,1648.0,1647.9,43.064]
[1745215593845,10.94668963,1648.0,1647.9,43.064]
[1745215594044,10.83814469,1648.0,1647.9,43.064]
[1745215595750,14.04594469,1648.0,1647.9,43.064]
[1745215596040,8.47474469,1648.0,1647.9,43.064]
[1745215596247,8.47474469,1648.0,1647.9,47.8826]
[1745215596745,7.26106469,1648.0,1647.9,47.8826]
[1745215596947,4.8205,1648.0,1647.9,52.8826]
[1745215597549,6.03418,1648.0,1647.9,52.8826]
[1745215598456,6.03418,1648.0,1647.9,47.8826]
[1745215599248,8.47474469,1648.0,1647.9,47.8826]
[1745215599439,10.86874469,1648.0,1647.9,47.8826]
[1745215599636,10.86874469,1648.0,1647.9,45.4633]
[1745215599836,10.86874469,1648.0,1647.9,43.064]
[1745215600147,14.07654469,1648.0,1647.9,43.064]
[1745215600348,14.18509053,1648.0,1647.9,43.064]
[1745215601051,14.07654469,1648.0,1647.9,45.3107]
[1745215601749,14.07654469,1648.0,1647.9,43.064]
[1745215602044,14.18509211,1648.0,1647.9,43.064]
[1745215602351,10.86874469,1648.0,1647.9,43.064]
[1745215602550,10.97729084,1648.0,1647.9,43.064]
[1745215602849,0.0285,1648.0,1647.9,51.2718]
[1745215603151,0.0285,1648.0,1647.9,53.7374]
[1745215604449,4.8095,1648.0,1647.9,54.95116]
[1745215605753,4.8095,1648.0,1647.9,55.67096]
[1745215607548,0.0285,1648.0,1647.9,55.67096]
[1745215607747,1.24218,1648.0,1647.9,60.3412]
[1745215607956,1.24218,1648.0,1647.9,61.0702863]
[1745215608858,0.0285,1648.0,1647.9,62.2840463]
[1745215609057,1.24218,1648.0,1647.9,56.0702863]
[1745215609253,8.46274469,1648.0,1647.9,50.1862863]
[1745215609661,8.46274469,1648.0,1647.9,49.4572]
[1745215610058,8.46274469,1648.0,1647.9,49.6054]
[1745215611859,7.24906469,1648.0,1647.9,49.6054]